bitfinex/quotes_SOLUSD_20260310
["timestamp","ask_amount","ask_price","bid_price","bid_amount"]
[1773132410604,28.72558059,87.031,87.0,4.05988231]
[1773132410605,11.49147906,87.021,87.0,4.05988231]
[1773132410804,2.50339513,87.02,87.0,4.05988231]
[1773132411605,2.50339513,87.02,86.994,0.62930588]
[1773132412125,11.49174318,87.019,87.0,4.05988231]
[1773132412723,14.09808631,87.024,87.001,0.62557376]
[1773132412927,2.6069025,87.023,87.0,4.05988231]
[1773132414028,2.6069025,87.021,87.0,4.05988231]
[1773132414230,2.6069025,87.021,86.995,0.62557376]
[1773132414436,2.6069025,87.021,86.99,4.05988231]
[1773132414437,2.6069025,87.021,86.99,4.68331811]
[1773132414728,2.6069025,87.021,86.991,0.6234358]
[1773132415816,2.6069025,87.021,87.0,4.05988231]
[1773132416923,2.62045802,87.036,87.011,0.62205111]
[1773132417327,2.62045802,87.036,86.997,0.62137067]
[1773132417531,40.20954918,87.044,86.99,4.68125298]
[1773132417532,2.62045802,87.029,86.99,4.68125298]
[1773132417726,2.62045802,87.029,86.99,4.68144229]
[1773132418233,2.62045802,87.029,87.0,4.06007162]
[1773132420032,4.06007162,87.04,87.0,4.06007162]
[1773132420033,2.61877233,87.027,87.0,4.06007162]
[1773132420812,2.61877233,87.027,87.002,0.61808392]
[1773132421017,11.49005914,87.032,87.01,4.06007162]
[1773132421837,11.49005914,87.032,87.01,4.67752067]
[1773132423644,11.49005914,87.032,87.01,16.17032266]
[1773132424740,11.49005914,87.032,87.01,4.67752067]
[1773132426059,2.62182949,87.053,87.021,0.61320449]
[1773132426344,2.62182949,87.053,87.02,4.06007162]
[1773132426345,11.48725489,87.053,87.031,0.61205348]
[1773132426718,2.5439895,87.082,87.041,0.61205348]
[1773132426936,2.5439895,87.082,87.05,4.06007162]
[1773132427126,2.5439895,87.079,87.04,4.06007162]
[1773132427331,2.5439895,87.069,87.03,4.06007162]
[1773132428720,2.5439895,87.067,87.03,15.55027028]
[1773132429149,2.5439895,87.067,87.04,4.06007162]
[1773132429532,2.5439895,87.059,87.02,4.06007162]
[1773132432944,2.5439895,87.057,87.02,4.06007162]
[1773132435138,2.5439895,87.049,87.01,4.06007162]
[1773132435646,2.5439895,87.039,87.0,4.06007162]
[1773132435833,2.5439895,87.039,87.001,11.49412075]
[1773132436022,2.5439895,87.039,87.01,4.06007162]
[1773132436849,2.5439895,87.039,87.001,11.49412075]
[1773132437955,2.5439895,87.037,87.01,4.06007162]
[1773132439455,2.5439895,87.035,87.0,4.06007162]
[1773132440555,2.5439895,87.033,87.01,4.06007162]
[1773132441345,2.5439895,87.033,87.0,4.06007162]
[1773132441650,2.5439895,87.033,87.01,4.06007162]
[1773132442350,2.5439895,87.033,87.0,4.66429031]
[1773132442734,2.5439895,87.031,87.01,4.06007162]
[1773132443835,2.5439895,87.031,87.0,4.66429031]
[1773132444835,2.5439895,87.029,87.0,4.06007162]
[1773132445348,2.5439895,87.029,87.001,0.60234875]
[1773132445527,2.5439895,87.029,87.01,4.06007162]
[1773132445727,11.4902907,87.03,87.01,4.66242037]
[1773132447452,2.5439895,87.043,87.02,4.06007162]
[1773132447630,2.5439895,87.041,87.02,4.06007162]
[1773132449350,2.5439895,87.041,87.011,12.09424545]
[1773132449535,2.5439895,87.039,87.01,4.06007162]
[1773132451938,2.5439895,87.037,87.003,0.60056325]
[1773132452135,2.5439895,87.037,87.01,4.06007162]
[1773132453266,2.5439895,87.035,87.003,0.60056325]
[1773132453940,40.21324508,87.036,86.99,4.06007162]
[1773132453941,2.5274113,87.029,86.99,4.06007162]
[1773132454336,2.5274113,87.019,86.98,4.06007162]
[1773132455366,2.5274113,87.017,86.981,11.49676366]
[1773132456055,2.5274113,87.017,86.98,4.65770206]
[1773132457157,2.5274113,87.017,86.981,11.49676366]
[1773132457760,40.22248781,87.016,86.98,4.65770206]
[1773132457946,2.5274113,87.015,86.98,4.65770206]
[1773132458142,2.5274113,87.015,86.98,4.06007162]
[1773132459167,2.5274113,87.015,86.99,4.06007162]
[1773132459463,2.5274113,87.015,86.991,0.59605802]
[1773132459955,11.49240352,87.014,86.991,0.59605802]
[1773132460357,14.01981482,87.014,86.991,0.59605802]
[1773132460765,2.5274113,87.013,86.973,0.59567613]
[1773132461065,40.22341232,87.014,86.991,0.59567613]
[1773132461251,11.49240352,87.014,86.991,0.59567613]
[1773132461452,14.01981482,87.014,86.991,0.59567613]
[1773132461658,2.5274113,87.013,86.991,0.59567613]
[1773132462167,2.5274113,87.024,87.0,4.06007162]
[1773132462461,2.5274113,87.023,86.991,0.59567613]
[1773132462666,4.06007162,87.02,86.98,4.65499709]
[1773132462862,2.5274113,87.019,86.98,4.65499709]
[1773132463070,2.5274113,87.019,86.99,4.06007162]
[1773132467167,2.5274113,87.017,86.99,4.65354682]
[1773132468563,2.5274113,87.015,86.99,4.06007162]
[1773132470870,11.49240352,87.014,86.99,4.06007162]
[1773132471176,2.5274113,87.013,86.99,4.06007162]
[1773132472468,2.59474361,87.011,86.973,11.49780236]
[1773132472675,2.59474361,87.009,86.98,4.06007162]
[1773132474174,2.59474361,87.007,86.98,4.06007162]
[1773132475463,2.59474361,87.005,86.974,0.59109302]
[1773132475774,2.59474361,87.005,86.98,4.06007162]
[1773132476175,2.59474361,87.005,86.97,4.06007162]
[1773132477576,2.59474361,87.003,86.971,12.08759118]
[1773132477768,2.59474361,87.003,86.972,0.58950562]
[1773132478575,2.59474361,87.003,86.98,4.64927062]
[1773132479587,11.49398864,87.002,86.98,4.65059566]
[1773132479778,11.49398864,87.002,86.981,0.5888959]
[1773132480566,2.59474361,87.001,86.972,0.58859628]
[1773132480777,2.59474361,87.001,86.98,4.06139666]
[1773132481480,2.59474361,87.001,86.98,4.64969676]
[1773132482172,11.49425287,87.0,86.981,0.5883001]
[1773132483274,2.59474361,87.033,86.991,0.58771791]
[1773132483465,2.59474361,87.033,86.981,11.49676366]
[1773132483466,2.59474361,87.033,87.01,4.06139666]
[1773132483660,2.64223536,87.029,86.99,4.06139666]
[1773132484067,2.64223536,87.019,86.98,4.06139666]
[1773132484768,2.64223536,87.019,86.99,4.06139666]
[1773132485884,2.64223536,87.019,86.964,3.69383402]
[1773132485885,2.64223536,87.019,86.98,4.06139666]
[1773132486263,2.64223536,87.009,86.97,4.06139666]
[1773132488687,40.22618608,87.008,86.97,4.06139666]
[1773132488867,2.64223536,87.007,86.97,4.06139666]
[1773132489883,11.49346022,87.006,86.97,4.06139666]
[1773132490070,2.64223536,87.005,86.97,4.06139666]
[1773132491803,2.64223536,87.005,86.98,4.06139666]
[1773132493395,2.64223536,87.003,86.97,4.06139666]
[1773132493569,11.49372442,87.004,86.96,0.1]
[1773132493570,2.64223536,86.989,86.96,0.1]
[1773132493976,2.64223536,86.989,86.96,15.66090394]
[1773132494497,2.64223536,86.989,86.96,4.16139666]
[1773132497893,11.4958385,86.988,86.96,4.16139666]
[1773132498194,2.64223536,86.987,86.96,15.66085923]
[1773132500190,2.64223536,86.985,86.96,15.66085923]
[1773132500590,2.64223536,86.985,86.97,4.06139666]
[1773132500781,2.64223536,86.985,86.96,15.66085923]
[1773132500977,2.64223536,87.003,86.97,4.06139666]
[1773132501183,2.64223536,87.003,86.99,4.06139666]
[1773132501490,2.64223536,87.003,86.98,4.06139666]
[1773132501993,2.64223536,87.012,86.98,4.06139666]
[1773132502177,2.64223536,87.012,86.99,4.06139666]
[1773132502379,2.64223536,87.01,86.99,4.06139666]
[1773132503399,2.64223536,87.01,86.991,11.49544205]
[1773132503694,2.64223536,87.01,86.99,4.06139666]
[1773132504694,2.64223536,87.033,87.0,4.06139666]
[1773132504904,2.64223536,87.032,87.0,4.06139666]
[1773132506496,2.64223536,87.032,86.961,45.99732151]
[1773132506497,11.49015867,87.031,87.01,4.06139666]
[1773132506704,14.13080997,87.043,87.02,4.06139666]
[1773132507304,2.64223536,87.042,87.02,4.06139666]
[1773132507507,11.48798032,87.048,87.03,4.06139666]
[1773132507679,2.64223536,87.051,87.03,4.06139666]
[1773132508101,2.64223536,87.049,87.02,4.06139666]
[1773132509802,11.48791471,87.048,87.02,4.06139666]
[1773132509996,2.64223536,87.047,87.02,4.06139666]
[1773132511800,2.64223536,87.029,86.99,4.06139666]
[1773132512799,2.64223536,87.029,86.991,11.49544205]
[1773132512993,2.64223536,87.027,86.991,11.49544205]
[1773132514403,2.64223536,87.027,86.99,4.06139666]
[1773132515001,2.64223536,87.027,87.0,4.06139666]
[1773132515204,2.64223536,87.027,87.01,4.06139666]
[1773132515401,14.1329935,87.027,87.01,4.06139666]
[1773132515611,2.64223536,87.027,87.01,4.06139666]
[1773132516813,11.49081883,87.026,86.967,3.69383402]
[1773132517105,11.49081883,87.026,87.0,4.06139666]
[1773132517106,2.64223536,87.025,87.0,4.06139666]
[1773132517309,11.49081883,87.026,87.01,4.06139666]
[1773132517495,14.13305419,87.026,86.967,3.69383402]
[1773132517810,2.64223536,87.03,87.01,4.06139666]
[1773132520898,11.48936659,87.037,87.02,4.06139666]
[1773132521094,2.64223536,87.044,87.02,4.06139666]
[1773132521300,2.64223536,87.044,87.03,4.06139666]
[1773132521495,11.48857461,87.043,87.02,4.06139666]
[1773132521799,2.64223536,87.042,87.02,4.06139666]
[1773132522916,2.64223536,87.04,87.02,4.06139666]
[1773132523294,2.64223536,87.04,87.011,11.49269427]
[1773132523501,2.64223536,87.04,87.02,4.06139666]
[1773132525016,2.64223536,87.038,87.02,4.06139666]
[1773132526312,2.64223536,87.038,87.014,11.49229307]
[1773132526813,2.64223536,87.038,87.02,4.06139666]
[1773132529298,2.64223536,87.059,87.03,4.06139666]
[1773132529498,2.64223536,87.058,87.03,4.06139666]
[1773132531614,2.64223536,87.056,87.02,4.06139666]
[1773132533319,2.64223536,87.049,87.02,4.06139666]
[1773132534027,2.64223536,87.047,87.02,4.06139666]
[1773132535026,2.64223536,87.047,87.021,11.49147906]
[1773132535228,14.12961143,87.053,87.03,4.06139666]
[1773132535722,2.64223536,87.052,87.021,11.49147906]
[1773132536322,11.48751881,87.051,87.03,4.06139666]
[1773132536529,2.64223536,87.05,87.03,4.06139666]
[1773132540030,2.64223536,87.048,87.03,4.06139666]
[1773132540826,11.48514396,87.069,87.04,4.06139666]
[1773132541037,2.64223536,87.068,87.04,4.06139666]
[1773132541211,2.64223536,87.059,87.02,4.06139666]
[1773132541413,2.64223536,87.049,87.01,4.06139666]
[1773132541716,2.64223536,87.049,87.01,4.05819078]
[1773132542037,2.64223536,87.047,87.011,11.49279976]
[1773132543133,2.64223536,87.047,87.011,40.22479916]
[1773132544214,2.64223536,87.045,87.011,40.22479916]
[1773132544924,14.12985972,87.051,87.03,4.05819078]
[1773132545733,14.12985972,87.051,87.011,40.22479916]
[1773132545734,2.64223536,87.05,87.02,4.05819078]
[1773132546733,2.64223536,87.048,87.02,4.05819078]
[1773132548331,2.64223536,87.048,87.021,11.49147906]
[1773132549122,14.12944103,87.054,87.03,4.05819078]
[1773132549635,2.64223536,87.053,87.03,4.05819078]
[1773132550432,14.12949025,87.053,87.03,4.05819078]
[1773132550736,2.64223536,87.052,87.03,4.05819078]
[1773132550937,2.64223536,87.052,87.02,4.05819078]
[1773132551120,57.42430074,87.072,87.013,11.49248098]
[1773132551121,2.64223536,87.049,87.013,11.49248098]
[1773132551938,2.64223536,87.049,87.02,4.05819078]
[1773132552336,2.64223536,87.049,87.01,4.05819078]
[1773132552634,2.64223536,87.049,87.001,11.49410766]
[1773132553333,40.20770149,87.048,87.001,11.49410766]
[1773132553541,2.64223536,87.039,87.001,11.49410766]
[1773132554842,2.64223536,87.029,86.994,11.49491814]
[1773132555538,11.49055476,87.028,87.0,4.05819078]
[1773132555723,2.64223536,87.027,87.0,4.05819078]
[1773132556730,2.64223536,87.019,86.99,4.05819078]
[1773132558041,2.64223536,87.017,86.99,4.05819078]
[1773132559145,2.64223536,87.015,86.99,4.05819078]
[1773132559638,2.64223536,87.015,86.978,11.49712734]
[1773132559939,2.64223536,87.015,86.99,4.05819078]
[1773132563644,2.64223536,87.013,86.99,4.05819078]
[1773132565642,11.49266767,87.012,86.98,4.05819078]
[1773132565828,2.64223536,87.011,86.98,4.05819078]
[1773132568053,28.7310088,87.014,86.98,4.05819078]
[1773132568054,2.64223536,87.009,86.981,11.49676366]
[1773132568251,2.64223536,87.009,86.99,4.05819078]
[1773132569249,2.64223536,87.009,86.981,11.49676366]
[1773132569449,2.64223536,87.009,86.99,4.05819078]
[1773132572336,2.64223536,87.049,87.0,8.11638156]
[1773132572656,2.64223536,87.049,87.02,4.05819078]
[1773132573944,2.64223536,87.047,87.02,4.05819078]
[1773132574852,2.64223536,87.047,87.01,4.05819078]
[1773132575256,2.64223536,87.047,87.02,4.05819078]
[1773132576439,2.64223536,87.045,87.02,4.05819078]
[1773132577754,2.64223536,87.045,87.03,4.05819078]
[1773132577960,2.64223536,87.052,87.04,4.05819078]
[1773132578451,11.48751881,87.051,87.04,4.05819078]
[1773132578658,11.48751881,87.051,87.03,4.05819078]
[1773132579258,11.48751881,87.051,87.04,4.05819078]
[1773132580247,2.64223536,87.05,87.03,4.05819078]
[1773132581164,2.64223536,87.048,87.02,4.05819078]
[1773132583256,2.64223536,87.046,87.02,4.05819078]
[1773132585057,2.64223536,87.044,87.02,4.05819078]
[1773132585268,2.64223536,87.044,87.014,11.49235266]
[1773132585566,2.64223536,87.044,87.02,4.05819078]
[1773132586771,2.64223536,87.042,87.02,4.05819078]
[1773132588270,2.64223536,87.065,87.03,4.05819078]
[1773132588763,2.64223536,87.059,87.02,4.05819078]
[1773132589069,11.48580354,87.064,87.01,4.05819078]
[1773132589070,2.64223536,87.049,87.01,4.05819078]
[1773132592271,2.64223536,87.047,87.01,4.05819078]
[1773132592472,40.20770149,87.048,87.01,4.05819078]
[1773132592473,2.64223536,87.039,87.01,4.05819078]
[1773132592648,2.64223536,87.039,87.0,4.05819078]
[1773132595152,2.64223536,87.037,87.0,15.55243277]
[1773132595351,2.64223536,87.037,87.01,4.05819078]
[1773132596471,2.64223536,87.037,87.0,4.05819078]
[1773132596676,2.64223536,87.037,87.01,4.05819078]
[1773132598076,2.64223536,87.035,87.0,4.05819078]
[1773132599676,2.64223536,87.035,87.01,4.05819078]
[1773132599859,11.48976262,87.034,87.01,4.05819078]
[1773132600060,2.64223536,87.033,87.0,4.05819078]
[1773132601357,2.64223536,87.033,87.01,4.05819078]
[1773132601879,2.64223536,87.033,87.0,4.05819078]
[1773132603068,11.49002665,87.032,87.001,11.49412075]
[1773132603290,2.64223536,87.031,87.001,11.49412075]
[1773132603580,2.64223536,87.031,87.0,4.05863608]
[1773132604280,2.64223536,87.029,86.99,4.05863608]
[1773132604576,2.64223536,87.019,86.98,4.05863608]
[1773132605772,2.64223536,87.017,86.981,11.49676366]
[1773132605964,2.64223536,87.009,86.97,4.05863608]
[1773132606671,2.64223536,87.009,86.966,11.49874663]
[1773132606884,2.64223536,87.009,86.97,4.05863608]
[1773132607385,2.64223536,87.009,86.98,4.05863608]
[1773132608087,2.64223536,87.007,86.981,11.49676366]
[1773132608383,2.64223536,87.007,86.98,4.05863608]
[1773132609181,11.49319602,87.008,86.98,4.05863608]
[1773132609392,2.64223536,87.025,87.0,4.05863608]
[1773132609578,2.64223536,87.024,87.0,4.05863608]
[1773132610167,2.64223536,87.022,86.99,4.05863608]
[1773132612183,11.49147906,87.021,86.99,4.05863608]
[1773132612383,2.64223536,87.02,86.99,4.05863608]
[1773132613872,2.64223536,87.029,87.0,4.05863608]
[1773132614584,2.64223536,87.028,86.994,11.49497316]
[1773132614977,2.64223536,87.028,87.0,4.05863608]
[1773132615377,2.64223536,87.028,86.982,11.49663148]
[1773132615583,2.64223536,87.028,86.99,4.05863608]
[1773132617573,2.64223536,87.026,86.991,11.49544205]
[1773132618391,2.64223536,87.026,87.0,4.05863608]
[1773132618691,2.64223536,87.041,87.0,4.05863608]
[1773132618870,2.64223536,87.046,87.02,4.05863608]
[1773132619694,2.64223536,87.044,87.02,4.05863608]
[1773132621093,2.64223536,87.044,86.989,28.73907748]
[1773132621293,40.20908724,87.045,87.01,4.05863608]
[1773132621294,2.64223536,87.039,87.01,4.05863608]
[1773132622091,2.64223536,87.037,87.01,4.05863608]
[1773132623600,2.64223536,87.035,87.01,4.05863608]
[1773132624104,11.48893461,87.041,87.02,4.05863608]
[1773132624404,2.64223536,87.042,87.02,4.05863608]
[1773132624579,2.64223536,87.04,87.011,11.49279976]
[1773132624982,2.64223536,87.039,87.01,4.05863608]
[1773132625176,2.64223536,87.039,87.0,4.05863608]
[1773132625376,2.64223536,87.029,87.0,4.05863608]
[1773132625908,2.64223536,87.029,87.001,11.49412075]
[1773132626085,2.64223536,87.029,87.01,4.05863608]
[1773132626285,11.48952332,87.036,87.01,4.05863608]
[1773132627304,2.64223536,87.036,87.01,4.05863608]
[1773132628881,2.64223536,87.036,87.02,4.05863608]
[1773132629084,2.64223536,87.036,87.011,11.49279976]
[1773132631786,2.64223536,87.034,87.01,4.05863608]
[1773132632002,2.64223536,87.034,87.011,11.49279976]
[1773132633404,11.48989463,87.033,87.011,11.49279976]
[1773132633704,2.64223536,87.032,87.01,4.05863608]
[1773132633933,2.64223536,87.029,86.97,62.8]
[1773132634205,2.64223536,87.019,86.99,4.05863608]
[1773132634908,2.64223536,87.017,86.99,4.05863608]
[1773132635894,2.64223536,87.029,87.0,4.05863608]
[1773132636491,2.64223536,87.043,87.02,4.05863608]
[1773132636692,2.64223536,87.049,87.03,4.05863608]
[1773132637893,11.48791471,87.048,87.03,4.05863608]
[1773132639211,2.64223536,87.047,87.02,4.05863608]
[1773132639389,2.64223536,87.047,87.0,4.05863608]
[1773132639390,4.05863608,87.04,87.0,4.05863608]
[1773132639711,2.64223536,87.039,87.0,4.05863608]
[1773132640306,2.64223536,87.039,87.01,4.05863608]
[1773132641815,2.64223536,87.037,87.01,4.05863608]
[1773132643507,2.64223536,87.035,87.01,4.05863608]
[1773132645115,11.48976262,87.034,87.01,4.05863608]
[1773132645295,2.64223536,87.033,87.01,4.05863608]
[1773132645917,2.64223536,87.033,86.996,11.49478136]
[1773132646218,2.64223536,87.033,87.01,4.05863608]
[1773132646395,2.64223536,87.033,87.0,4.05863608]
[1773132647317,2.64223536,87.031,87.01,4.05863608]
[1773132649522,2.64223536,87.029,87.001,11.4940868]
[1773132649720,2.64223536,87.029,87.0,4.05863608]
[1773132650711,2.64223536,87.027,87.0,15.55279147]
[1773132654215,2.64223536,87.025,87.0,15.55279147]
[1773132655509,2.64223536,87.023,86.99,4.05863608]
[1773132655710,2.64223536,87.023,87.0,4.05863608]
[1773132656610,2.64223536,87.023,86.99,4.05863608]
[1773132657918,2.64223536,87.019,86.964,3.69383402]
[1773132658115,2.64223536,87.019,86.98,4.05863608]
[1773132658710,2.64223536,87.019,86.99,4.05863608]
[1773132659831,4.05863608,87.01,86.98,4.05863608]
[1773132660032,2.64223536,87.007,86.971,11.49808556]
[1773132660530,2.64223536,87.007,86.97,15.55681093]
[1773132660732,2.64223536,86.989,86.96,0.1]
[1773132660907,2.64223536,86.989,86.961,11.49940778]
[1773132661831,2.64223536,86.989,86.96,4.15863608]
[1773132662306,2.64223536,86.987,86.96,0.1]
[1773132662512,2.64223536,86.979,86.92,0.1]
[1773132662835,2.64223536,86.969,86.93,4.05863608]
[1773132663210,40.23543476,86.988,86.92,0.1]
[1773132663211,2.64223536,86.949,86.92,0.1]
[1773132663423,2.64223536,86.949,86.92,4.15863608]
[1773132663835,4.05863608,86.97,86.93,4.05863608]
[1773132664007,2.64223536,86.969,86.93,4.05863608]
[1773132664212,2.64223536,86.959,86.93,4.05863608]
[1773132665120,2.64223536,86.959,86.931,11.50337624]
[1773132665823,2.64223536,86.959,86.93,4.06637938]
[1773132667622,11.4998045,86.958,86.92,0.1]
[1773132667826,2.64223536,86.957,86.92,4.16637938]
[1773132668410,2.64223536,86.949,86.92,4.16637938]
[1773132669837,2.64223536,86.947,86.92,4.16637938]
[1773132670047,11.50112711,86.948,86.92,0.1]
[1773132670048,2.64223536,86.939,86.92,0.1]
[1773132670628,2.64223536,86.929,86.9,0.1]
[1773132671715,2.59223536,86.928,86.89,0.1]
[1773132671925,2.59223536,86.917,86.89,0.1]
[1773132672328,2.59223536,86.909,86.89,0.1]
[1773132672524,2.59223536,86.909,86.88,0.1]
[1773132672724,2.59223536,86.909,86.88,4.16637938]
[1773132673815,2.59223536,86.909,86.88,0.1]
[1773132674018,2.54223536,86.907,86.88,0.1]
[1773132675438,2.54223536,86.907,86.88,4.16637938]
[1773132676134,2.54223536,86.905,86.88,0.1]
[1773132676439,2.54223536,86.899,86.88,0.1]
[1773132678835,2.54223536,86.897,86.88,0.1]
[1773132680749,11.50774471,86.898,86.88,0.1]
[1773132680750,28.76271147,86.919,86.881,2.58172032]
[1773132681050,4.06637938,86.92,86.882,2.58172032]
[1773132681227,4.06637938,86.9,86.88,0.1]
[1773132681421,4.06637938,86.89,86.87,0.1]
[1773132681637,4.06637938,86.88,86.842,2.58172032]
[1773132681837,4.06637938,86.88,86.825,0.2648287]
[1773132681838,4.06637938,86.87,86.835,11.51605509]
[1773132682024,4.06637938,86.86,86.83,0.1]
[1773132682334,4.06637938,86.84,86.804,2.58172032]
[1773132682637,4.06637938,86.85,86.811,2.58172032]
[1773132682830,2.40172018,86.837,86.811,2.58172032]
[1773132683031,2.40172018,86.837,86.805,2.58172032]
[1773132684239,2.40172018,86.835,86.806,11.51994101]
[1773132684440,2.40172018,86.844,86.811,2.58172032]
[1773132684623,2.40172018,86.844,86.805,28.80002873]
[1773132684624,2.40172018,86.829,86.8,0.1]
[1773132684943,2.40172018,86.829,86.801,2.58172032]
[1773132685243,2.40172018,86.829,86.802,2.58172032]
[1773132686134,2.40172018,86.829,86.8,4.16637938]
[1773132686730,11.51702215,86.828,86.8,4.16637938]
[1773132686930,2.40172018,86.827,86.8,18.26875312]
[1773132687125,2.40172018,86.841,86.82,6.6480997]
[1773132687336,2.40172018,86.848,86.821,2.58172032]
[1773132687536,2.40172018,86.848,86.811,2.58172032]
[1773132688545,2.40172018,86.839,86.811,2.58172032]
[1773132688939,2.40172018,86.839,86.82,4.06637938]
[1773132689330,2.40172018,86.839,86.812,14.10086513]
[1773132689525,11.51569589,86.838,86.812,14.10086513]
[1773132689734,2.40172018,86.837,86.8,15.68698686]
[1773132690053,2.40172018,86.837,86.81,4.06637938]
[1773132691051,2.40172018,86.835,86.8,0.1]
[1773132691230,2.40172018,86.819,86.79,0.1]
[1773132691550,2.40172018,86.819,86.791,2.58172032]
[1773132693835,13.91997709,86.819,86.792,11.52179924]
[1773132694046,13.91997709,86.819,86.793,2.47387099]
[1773132694240,11.51766823,86.824,86.793,2.47387099]
[1773132694426,11.51766823,86.824,86.801,2.47387099]
[1773132694849,11.5170216,86.829,86.801,2.47387099]
[1773132696060,46.05201644,86.859,86.79,4.16637938]
[1773132696061,4.06637938,86.86,86.821,2.47387099]
[1773132696261,4.06637938,86.83,86.796,11.52124414]
[1773132696429,2.35236592,86.819,86.79,0.1]
[1773132696633,2.35236592,86.819,86.79,2.57387099]
[1773132697361,4.06637938,86.81,86.79,2.57387099]
[1773132697545,2.35236592,86.819,86.792,2.47387099]
[1773132697930,2.35236592,86.819,86.793,13.99553748]
[1773132698144,2.35236592,86.819,86.794,2.47387099]
[1773132698349,11.51789575,86.822,86.794,2.47387099]
[1773132698747,13.87026167,86.822,86.794,2.47387099]
[1773132698965,4.06637938,86.83,86.801,2.47387099]
[1773132698966,11.51693749,86.829,86.801,2.47387099]
[1773132699257,2.35236592,86.831,86.801,2.47387099]
[1773132699450,11.51625662,86.834,86.801,2.47387099]
[1773132700047,6.4187453,86.83,86.802,2.47387099]
[1773132700348,11.51625662,86.834,86.802,2.47387099]
[1773132700542,2.35236592,86.833,86.802,2.47387099]
[1773132700748,2.35236592,86.833,86.803,2.47387099]
[1773132700937,11.51561538,86.839,86.81,4.06637938]
[1773132701253,2.35236592,86.848,86.821,2.47387099]
[1773132701550,2.35236592,86.858,86.821,2.47387099]
[1773132701749,2.35236592,86.829,86.803,2.47387099]
[1773132701953,2.35236592,86.829,86.796,2.47387099]
[1773132702153,11.51600875,86.836,86.801,2.47387099]
[1773132702335,13.86837467,86.836,86.801,2.47387099]
[1773132702662,13.86837467,86.836,86.81,4.06637938]
[1773132702958,13.86837467,86.836,86.811,2.47387099]
[1773132703948,11.51600875,86.836,86.811,2.47387099]
[1773132705356,2.35236592,86.839,86.811,2.47387099]
[1773132706246,2.35236592,86.839,86.811,11.5192709]
[1773132706451,11.51529807,86.841,86.812,2.47387099]
[1773132706664,11.51529807,86.841,86.811,11.5192709]
[1773132706665,2.35236592,86.846,86.821,2.47387099]
[1773132707162,11.51476768,86.845,86.821,2.47387099]
[1773132708655,2.35236592,86.845,86.814,2.47387099]
[1773132709056,40.29983073,86.849,86.808,2.47387099]
[1773132709057,2.35236592,86.839,86.808,2.47387099]
[1773132709444,2.35236592,86.839,86.811,2.47387099]
[1773132710754,13.86806181,86.838,86.811,2.47387099]
[1773132711349,46.02995001,86.9,86.831,2.47387099]
[1773132711350,2.35236592,86.87,86.831,2.47387099]
[1773132711565,2.35236592,86.87,86.84,4.06637938]
[1773132711767,2.35236592,86.87,86.841,2.47387099]
[1773132712147,2.35236592,86.869,86.841,2.47387099]
[1773132712657,2.35236592,86.868,86.841,2.47387099]
[1773132715753,2.40174724,86.866,86.841,2.47387099]
[1773132716870,2.40174724,86.866,86.84,4.06637938]
[1773132717771,2.40174724,86.866,86.841,2.54700854]
[1773132719465,2.40174724,86.875,86.843,2.54700854]
[1773132719675,2.40174724,86.875,86.851,2.54700854]
[1773132719878,2.40174724,86.889,86.86,4.06637938]
[1773132720056,2.40174724,86.888,86.86,6.61338792]
[1773132720250,2.40174724,86.879,86.851,2.54700854]
[1773132720453,2.40174724,86.879,86.843,2.54700854]
[1773132720651,2.40174724,86.859,86.828,2.54700854]
[1773132720854,2.40174724,86.859,86.831,2.54700854]
[1773132721349,4.06637938,86.87,86.84,4.06637938]
[1773132721350,2.40174724,86.868,86.84,4.06637938]
[1773132721678,2.40174724,86.877,86.851,2.54700854]
[1773132721858,2.40174724,86.877,86.841,2.54700854]
[1773132722064,2.40174724,86.869,86.841,2.54700854]
[1773132724072,4.06637938,86.86,86.815,2.52382921]
[1773132724377,40.29101624,86.868,86.801,2.52382921]
[1773132724378,2.50183894,86.839,86.801,2.52382921]
[1773132724677,2.50183894,86.839,86.811,2.52382921]
[1773132724980,2.50183894,86.849,86.811,2.52382921]
[1773132725354,2.50183894,86.839,86.811,2.52382921]
[1773132726077,2.50183894,86.837,86.811,2.52382921]
[1773132726383,2.50183894,86.837,86.805,11.5199682]
[1773132726558,2.50183894,86.837,86.806,2.52382921]
[1773132726755,2.50183894,86.837,86.766,3.69383402]
[1773132726756,2.50183894,86.819,86.736,2.62436676]
[1773132726975,4.06637938,86.76,86.743,2.62436676]
[1773132727272,2.50183894,86.778,86.74,4.06637938]
[1773132727684,4.08433058,86.77,86.74,4.08433058]
[1773132727862,2.50183894,86.787,86.75,4.08433058]
[1773132728056,11.52219751,86.789,86.75,4.08433058]
[1773132728383,4.08433058,86.78,86.74,4.08433058]
[1773132728957,4.08433058,86.78,86.726,40.35698636]
[1773132729257,4.08433058,86.78,86.741,2.52382921]
[1773132730177,4.08433058,86.77,86.741,2.52382921]
[1773132730372,6.58616952,86.77,86.741,2.52382921]
[1773132730873,2.50183894,86.778,86.741,2.52382921]
[1773132731057,7.7781646,86.8,86.741,2.52382921]
[1773132731058,11.52274667,86.785,86.751,2.52382921]
[1773132732559,14.02458561,86.785,86.751,2.52382921]
[1773132732768,4.08433058,86.78,86.751,2.52382921]